fUSD/lending_fUSD_20241008
["ID","MTS","AMOUNT","RATE_DAILY","PERIOD"]
[340036240,1728351038092,-214.6745,0.000107,2]
[340036241,1728351038101,-150.0,0.00010789,2]
[340036242,1728351038111,-433.101,0.0001079,2]
[340036243,1728351038120,-439.8,0.0001079,2]
[340036244,1728351038129,-439.8,0.0001079,2]
[340036245,1728351038139,-439.8,0.0001079,2]
[340036246,1728351038148,-96.52448489,0.0001079,2]
[340036247,1728351038190,-343.27551511,0.0001079,2]
[340036248,1728351038199,-439.8,0.0001079,2]
[340036249,1728351038210,-439.8,0.0001079,2]
[340036250,1728351038219,-439.8,0.0001079,2]
[340036251,1728351038229,-439.8,0.0001079,2]
[340036252,1728351038238,-439.8,0.0001079,2]
[340036253,1728351038247,-439.8,0.0001079,2]
[340036255,1728351038256,-8331.16791606,0.000108,2]
[340036256,1728351038268,-1279.7631426,0.000108,2]
[340036257,1728351038279,-51725.15734134,0.000108,2]
[340036258,1728351038288,-1003.9748,0.000108,2]
[340036259,1728351038298,-8304.71693866,0.000108,2]
[340036262,1728351039775,-312.85,0.000108,2]
[340036263,1728351039786,-413.1845815,0.000108,2]
[340036264,1728351039797,-29786.9114008,0.000108,2]
[340036270,1728351042897,-5994.81000001,0.000108,2]
[340036271,1728351042909,-5194.07497903,0.000108,2]
[340036272,1728351042918,-439.8,0.00010889,2]
[340036273,1728351042926,-439.8,0.00010889,2]
[340036274,1728351042935,-439.8,0.00010889,2]
[340036275,1728351042944,-439.8,0.0001089,2]
[340036276,1728351042953,-17283.3,0.00010899,2]
[340036277,1728351042963,-5161.44288008,0.00010899,2]
[340036278,1728351042972,-401.94,0.000109,2]
[340036279,1728351042981,-7500.0,0.000109,2]
[340036280,1728351042990,-176.43212463,0.000109,2]
[340036281,1728351042999,-439.8,0.00010949,2]
[340036282,1728351043008,-160.63,0.00010959,2]
[340036283,1728351043019,-172.54,0.00010959,2]
[340036284,1728351043028,-151.23,0.00010959,2]
[340036285,1728351043038,-150.0,0.00010959,2]
[340036286,1728351043047,-250.0,0.00010959,2]
[340036287,1728351043056,-236.42,0.00010959,2]
[340036288,1728351043065,-197.02,0.00010959,2]
[340036289,1728351043075,-164.18,0.00010959,2]
[340036290,1728351043084,-820.94,0.00010959,2]
[340036291,1728351043093,-758.86,0.00010959,2]
[340036292,1728351043102,-439.8,0.0001099,2]
[340036293,1728351043112,-439.8,0.0001099,2]
[340036294,1728351043121,-439.8,0.0001099,2]
[340036296,1728351043131,-439.8,0.0001099,2]
[340036297,1728351043141,-439.8,0.0001099,2]
[340036299,1728351043150,-285.90804095,0.00010999,2]
[340036301,1728351043159,-500.0,0.00010999,2]
[340036302,1728351043169,-311.20751102,0.00010999,2]
[340036303,1728351043178,-500.0,0.00010999,2]
[340036304,1728351043187,-500.0,0.00010999,2]
[340036305,1728351043196,-333.23854209,0.00010999,2]
[340036306,1728351043205,-500.0,0.00010999,2]
[340036307,1728351043215,-500.0,0.00010999,2]
[340036308,1728351043224,-500.0,0.00010999,2]
[340036309,1728351043233,-213.35944362,0.00010999,2]
[340036310,1728351043243,-585.0,0.00011,2]
[340036311,1728351043251,-61545.6612842,0.00011,2]
[340036312,1728351045732,-502.16165784,0.00010973,2]
[340036314,1728351045742,-7112.31834217,0.00011,2]
[340036315,1728351046055,-34322.7834206,0.00011,2]
[340036316,1728351046066,-1349.08377204,0.00011,2]
[340036317,1728351089359,11515.0,0.000125,3]
[340036318,1728351120960,6719.0,0.000125,3]
[340036319,1728351162142,3831.8228,0.00010132,2]
[340036322,1728351246098,11515.0,0.000125,5]
[340036324,1728351476237,2000.0,0.00023,60]
[340036325,1728351583668,2005.50875531,0.00023,60]
[340036326,1728351813101,606.56,9.544e-05,2]
[340036354,1728352231981,-1133.23596,0.00010844,2]
[340036355,1728352231991,-150.0,0.00010899,2]
[340036356,1728352232000,-846.0858892,0.000109,2]
[340036357,1728352232011,-279.89536538,0.000109,2]
[340036358,1728352232148,-7364.30568255,0.000109,2]
[340036359,1728352232159,-1676.43726287,0.000109,2]
[340036360,1728352232168,-458.8468,0.000109,2]
[340036361,1728352232177,-1145.83409172,0.000109,2]
[340036362,1728352232188,-986.37026485,0.000109,2]
[340036366,1728352238011,-151.37974343,0.000109,2]
[340036367,1728352238021,-1379.4157,0.000109,2]
[340036368,1728352238030,-1743.9552,0.000109,2]
[340036369,1728352238039,-296.0994,0.000109,2]
[340036371,1728352238049,-247.7588,0.000109,2]
[340036372,1728352238058,-214.7015,0.000109,2]
[340036373,1728352238067,-7500.0,0.000109,2]
[340036374,1728352238075,-5227.50646678,0.000109,2]
[340036375,1728352238085,-154.73912695,0.000109,2]
[340036376,1728352238093,-339.019,0.000109,2]
[340036377,1728352238102,-174.09804233,0.000109,2]
[340036378,1728352238111,-361.94950267,0.000109,2]
[340036379,1728352238120,-386.00401116,0.000109,2]
[340036380,1728352238129,-412.55200888,0.000109,2]
[340036381,1728352238139,-586.1757304,0.000109,2]
[340036382,1728352238148,-183.47408906,0.000109,2]
[340036383,1728352238158,-162.59,0.00010959,2]
[340036384,1728352238167,-163.21,0.00010959,2]
[340036385,1728352238176,-212.3,0.00010959,2]
[340036386,1728352238185,-150.63,0.00010959,2]
[340036387,1728352238194,-200.91266897,0.00010973,2]
[340036388,1728352238203,-500.0,0.00010973,2]
[340036389,1728352238212,-160.72288981,0.00010973,2]
[340036390,1728352238221,-500.0,0.00010973,2]
[340036391,1728352238230,-503.58980908,0.00010973,2]
[340036392,1728352238239,-171.98660781,0.00010999,2]
[340036393,1728352238248,-500.0,0.00010999,2]
[340036394,1728352238258,-500.0,0.00010999,2]
[340036395,1728352238267,-492.88018089,0.00010999,2]
[340036396,1728352238275,-48419.09558192,0.00011,2]
[340036397,1728352238411,-7152.12237024,0.00011,2]
[340036400,1728352238422,-556.19482424,0.00011,2]
[340036403,1728352240061,-830.06575442,0.00011,2]
[340036404,1728352240072,-1812.3697716,0.00011,2]
[340036405,1728352240288,-2284.7263169,0.00011,2]
[340036406,1728352240300,-702.36484713,0.00011,2]
[340036407,1728352240311,-62674.41192612,0.00011,2]
[340036436,1728352242989,-274.51361385,0.00011,2]
[340036437,1728352243157,-694.6552224,0.00011,2]
[340036438,1728352243169,-1329.2999999,0.00011,2]
[340036482,1728352390965,645.46,9.238e-05,2]
[340036484,1728352912370,613.18,9.15e-05,2]
[340036485,1728353432069,-262.70659263,0.00010233,2]
[340036496,1728353432269,-5692.39240737,0.00010233,2]
[340036497,1728353432279,-2010.74304789,0.00010233,2]
[340036498,1728353432290,-2678.45710662,0.00010233,2]
[340036499,1728353432300,-172.05,0.00010333,2]
[340036500,1728353432310,-255.11291737,0.000108,2]
[340036501,1728353432322,-74.17518263,0.000108,2]
[340036502,1728353432424,-150.0,0.00010899,2]
[340036503,1728353432434,-162.99952056,0.00010899,2]
[340036504,1728353432446,-137.00047944,0.00010899,2]
[340036505,1728353432455,-1000.0,0.000109,2]
[340036506,1728353432464,-221.4234,0.000109,2]
[340036507,1728353432473,-204.87082497,0.000109,2]
[340036508,1728353432483,-893.40529559,0.000109,2]
[340036509,1728353432494,-2195.73008022,0.000109,2]
[340036510,1728353432505,-433.32156595,0.000109,2]
[340036511,1728353432516,-1440.43885463,0.000109,2]
[340036512,1728353432527,-2537.10420361,0.000109,2]
[340036513,1728353432537,-4611.64542971,0.000109,2]
[340036514,1728353432548,-420.98804803,0.000109,2]
[340036515,1728353432561,-1396.35356278,0.000109,2]
[340036516,1728353432573,-1329.28402773,0.000109,2]
[340036522,1728353438549,-97.38643175,0.000109,2]
[340036523,1728353438559,-1534.0,0.000109,2]
[340036524,1728353438574,-171.5136259,0.000109,2]
[340036525,1728353438584,-1292.2342,0.000109,2]
[340036526,1728353438593,-244.29122406,0.000109,2]
[340036527,1728353438603,-180.94161762,0.000109,2]
[340036528,1728353438612,-2318.01170555,0.000109,2]
[340036529,1728353438621,-7500.0,0.000109,2]
[340036530,1728353438630,-164.39,0.00010959,2]
[340036531,1728353438639,-151.23,0.00010959,2]
[340036532,1728353438649,-504.45880968,0.00010973,2]
[340036533,1728353438658,-505.50856967,0.00010973,2]
[340036534,1728353438667,-50719.10781577,0.00011,2]
[340036556,1728353440253,-339.11386881,0.00011,2]
[340036557,1728353440265,-1086.34670665,0.00011,2]
[340036558,1728353440276,-674.98599421,0.00011,2]
[340036559,1728353440461,-710.86,0.00011,2]
[340036579,1728353443083,612.48,9.243e-05,2]
[340036589,1728353443332,-8644.20802617,0.00011,2]
[340036590,1728353443553,-14839.69947837,0.00011,2]
[340036591,1728353443564,-10797.29872224,0.00011,2]
[340036592,1728353443576,-252272.96056036,0.00011,2]
[340036604,1728353446171,-658.07952203,0.00011,2]
[340036606,1728353536656,162.3936,0.00010133,2]
[340036607,1728353943630,612.25,9.149e-05,2]
[340036608,1728354034209,243.65,0.00014,10]
[340036609,1728354115938,-1000.0,0.0001068,2]
[340036610,1728354117216,-37.77807236,0.0001068,2]
[340036611,1728354117235,-334.41916557,0.0001068,2]
[340036612,1728354117255,-462.969,0.0001078,2]
[340036613,1728354117274,-150.0,0.00010899,2]
[340036614,1728354117294,-14.83376207,0.000109,2]
[340036615,1728354118396,-1000.0,0.000109,2]
[340036616,1728354119845,-1000.0,0.000109,2]
[340036617,1728354121028,-11.03543793,0.000109,2]
[340036618,1728354121048,-988.96456207,0.000109,2]
[340036619,1728354123843,-1000.0,0.000109,2]
[340036620,1728354125545,-511.03543793,0.000109,2]
[340036621,1728354125565,-488.96456207,0.000109,2]
[340036622,1728354129033,-300.0,0.000109,2]
[340036624,1728354383747,555.0,0.000125,3]
[340036625,1728354459514,629.77,9.978e-05,2]
[340036626,1728354461272,250.0,0.000125,6]
[340036627,1728354496946,250.0,0.00014,10]
[340036636,1728354570973,11515.0,0.000125,5]
[340036666,1728354632326,-341.42630098,0.00010745,2]
[340036667,1728354632336,-3716.47219502,0.00010745,2]
[340036668,1728354632346,-2118.8868,0.000108,2]
[340036669,1728354632355,-305.7723,0.000108,2]
[340036670,1728354632364,-300.0,0.00010899,2]
[340036671,1728354632374,-3325.8329,0.000109,2]
[340036672,1728354632384,-173.94279504,0.000109,2]
[340036673,1728354632393,-6419.04812525,0.000109,2]
[340036674,1728354632402,-179.89968722,0.000109,2]
[340036675,1728354632411,-162.37,0.00010959,2]
[340036676,1728354632420,-1669.54398636,0.00010998,2]
[340036677,1728354632429,-150.0,0.00010999,2]
[340036678,1728354632438,-280088.12269607,0.00011,2]
[340036679,1728354632450,-590.16069176,0.00011,2]
[340036680,1728354632461,-704.86,0.00011,2]
[340036681,1728354632472,-912.38802639,0.00011,2]
[340036682,1728354632482,-530.14499983,0.00011,2]
[340036683,1728354632493,-2178.54090425,0.00011,2]
[340036684,1728354632511,-741.93957271,0.00011,2]
[340036685,1728354632525,-6168.6639082,0.00011,2]
[340036686,1728354632536,-798.80351269,0.00011,2]
[340036687,1728354632547,-1098.66587121,0.00011,2]
[340036688,1728354632559,-939.33967685,0.00011,2]
[340036689,1728354632570,-1105.3731049,0.00011,2]
[340036691,1728354632582,-1316.83678172,0.00011,2]
[340036694,1728354632593,-925.07724057,0.00011,2]
[340036698,1728354632604,-508.47198714,0.00011,2]
[340036700,1728354632622,-966.43463374,0.00011,2]
[340036702,1728354632633,-618.03494291,0.00011,2]
[340036720,1728354638682,-10908.07084166,0.00011,2]
[340036723,1728354640414,-171.51362588,0.000109,2]
[340036724,1728354640424,-1127.54842151,0.00011,2]
[340036725,1728354640435,-911.72732363,0.00011,2]
[340036726,1728354640446,-3602.21195516,0.00011,2]
[340036727,1728354640459,-486.06072121,0.00011,2]
[340036728,1728354640470,-4957.06848104,0.00011,2]
[340036734,1728354640718,-30.85077245,0.00011,2]
[340036735,1728354640733,-694.17761192,0.00011,2]
[340036757,1728354643606,-445.41059929,0.00011,2]
[340036758,1728354643619,-859.18133525,0.00011,2]
[340036759,1728354643630,-1575.75,0.00011,2]
[340036760,1728354643641,-312144.03943902,0.00011,2]
[340036762,1728354646294,-490.69631289,0.00011,2]
[340036763,1728354646676,-29458.265973,0.00011,2]
[340036764,1728354995013,598.28,0.0001021,2]
[340036765,1728355603476,625.9,0.00010086,2]
[340036771,1728355832445,-150.0,0.00010745,2]
[340036772,1728355832454,-188.2373,0.000108,2]
[340036774,1728355832464,-150.0,0.00010899,2]
[340036775,1728355832473,-3300.30803529,0.000109,2]
[340036776,1728355832668,-435.40455405,0.000109,2]
[340036777,1728355832920,-4781.02268136,0.000109,2]
[340036798,1728355838707,-646.8411,0.000109,2]
[340036799,1728355839163,-160.6125293,0.000109,2]
[340036800,1728355839173,-11907.0022,0.000109,2]
[340036801,1728355839183,-13711.3566,0.000109,2]
[340036802,1728355839192,-6347.25424944,0.000109,2]
[340036803,1728355839202,-962.5376,0.000109,2]
[340036804,1728355839212,-6422.0802,0.000109,2]
[340036805,1728355839221,-163.51,0.00010959,2]
[340036806,1728355839231,-150.63,0.00010959,2]
[340036807,1728355839240,-1001.9210652,0.00010999,2]
[340036808,1728355839250,-7778.01575986,0.00011,2]
[340036809,1728355839263,-2234.26707728,0.00011,2]
[340036812,1728355840979,-312.50464013,0.00011,2]
[340036821,1728355843616,-21194.0593042,0.00011,2]
[340036832,1728355846795,-360.03387128,0.00011,2]
[340036834,1728355846806,-753.68927655,0.00011,2]
[340036836,1728355846817,-1280.81103182,0.00011,2]
[340036838,1728356166572,622.51,0.00010081,2]
[340036839,1728356654078,-1000.0,0.00010333,2]
[340036840,1728356655210,-1000.0,0.00010333,2]
[340036841,1728356656301,-59.82,0.00010333,2]
[340036842,1728356656324,-221.03031694,0.00010333,2]
[340036843,1728356682444,618.35,0.0001017,2]
[340036844,1728356730952,10000.0,0.00023,60]
[340036845,1728356742985,10000.0,0.00023,60]
[340036846,1728356760812,10000.0,0.00023,60]
[340036847,1728356880895,248.92,0.00023,120]
[340036848,1728356909323,150.89569,0.0001023,2]
[340036883,1728357031751,-150.0,0.00010899,2]
[340036885,1728357031760,-171.53336318,0.000109,2]
[340036887,1728357031770,-8233.295214,0.000109,2]
[340036896,1728357031862,-6371.18699139,0.000109,2]
[340036898,1728357031872,-161.28046835,0.000109,2]
[340036900,1728357031881,-6012.20629809,0.000109,2]
[340036901,1728357031890,-1368.06561959,0.00010933,2]
[340036903,1728357031902,-3363.27838041,0.00010933,2]
[340036904,1728357031921,-152.33,0.00010933,2]
[340036905,1728357031930,-1616.933,0.00010933,2]
[340036906,1728357031939,-163.22,0.00010959,2]
[340036907,1728357031947,-154.41,0.00010959,2]
[340036908,1728357031956,-849.08,0.00010959,2]
[340036910,1728357031965,-606.22763745,0.00010994,2]
[340036912,1728357031974,-1000.0,0.00010994,2]
[340036913,1728357031983,-226.1858335,0.00010995,2]
[340036915,1728357031992,-23643.9408273,0.00010995,2]
[340036917,1728357032000,-67766.75213988,0.00011,2]
[340036919,1728357032011,-2534.578025,0.00011,2]
[340036921,1728357032022,-463.05,0.00011,2]
[340036922,1728357032032,-8332.30664326,0.00011,2]
[340036923,1728357032043,-377.86782155,0.00011,2]
[340036924,1728357032065,-4824.22329494,0.00011,2]
[340036925,1728357032075,-683.64,0.00011,2]
[340036970,1728357038062,-283.15495392,0.00010933,2]
[340036971,1728357038253,-829.93604608,0.00010933,2]
[340036972,1728357038262,-31710.06332581,0.00011,2]
[340036973,1728357039789,-5184.20181618,0.00011,2]
[340036974,1728357039800,-326.51512782,0.00011,2]
[340036975,1728357040004,-9041.73463526,0.00011,2]
[340036976,1728357040014,-3422.99865,0.00011,2]
[340036977,1728357040136,-119.15444454,0.00011,2]
[340036978,1728357040147,-125856.8237375,0.00011,2]
[340036995,1728357043028,-950.9093924,0.00011,2]
[340036997,1728357043040,-1602.74999996,0.00011,2]
[340036998,1728357043050,-1545.0,0.00011,2]
[340037001,1728357045924,-6336.80832276,0.00011,2]
[340037002,1728357045936,-1229.9991,0.00011,2]
[340037227,1728357442618,613.93,0.00010201,2]
[340037228,1728357939228,608.79,0.00010133,2]
[340037229,1728357952604,150.07,9.603e-05,2]
[340037230,1728358021980,-568.812,0.0001078,2]
[340037231,1728358022002,-158.74107702,0.0001078,2]
[340037232,1728358022024,-4212.9226,0.000108,2]
[340037233,1728358022045,-1118.06527095,0.00010899,2]
[340037234,1728358022066,-171.53336317,0.000109,2]
[340037235,1728358022086,-279.355,0.000109,2]
[340037236,1728358022108,-471.7099,0.000109,2]
[340037237,1728358022130,-913.4699,0.000109,2]
[340037238,1728358022150,-1000.0,0.000109,2]
[340037239,1728358022173,-6170.82852813,0.000109,2]
[340037240,1728358022194,-278.3141,0.000109,2]
[340037241,1728358022215,-160.65,0.00010959,2]
[340037242,1728358022236,-163.51,0.00010959,2]
[340037243,1728358022257,-786.24,0.00010959,2]
[340037244,1728358022277,-21918.4391916,0.00010995,2]
[340037245,1728358022296,-171.7724792,0.00010995,2]
[340037246,1728358022316,-2240.6193814,0.00010995,2]
[340037247,1728358022335,-1000.0,0.00010999,2]
[340037248,1728358022355,-3800.76468554,0.00010999,2]
[340037249,1728358022375,-12215.21167339,0.00010999,2]
[340037250,1728358022401,-878939.0408496,0.00011,2]
[340037288,1728358231935,-1289.6796,0.0001068,2]
[340037289,1728358231944,-300.0,0.00010899,2]
[340037290,1728358231953,-150.0,0.00010899,2]
[340037291,1728358231967,-48999.24867095,0.000109,2]
[340037292,1728358232153,-0.38499754,0.000109,2]
[340037293,1728358232165,-2110.31638186,0.000109,2]
[340037294,1728358232176,-572.93645463,0.000109,2]
[340037295,1728358232191,-2042.49653615,0.000109,2]
[340037296,1728358232201,-3301.82961264,0.000109,2]
[340037306,1728358238122,-1185.34288774,0.000109,2]
[340037307,1728358238133,-2082.44359574,0.000109,2]
[340037308,1728358238275,-1018.81824475,0.000109,2]
[340037309,1728358238287,-250.0,0.000109,2]
[340037310,1728358238298,-11798.43078579,0.000109,2]
[340037311,1728358238415,-307.25000024,0.000109,2]
[340037334,1728358239949,-1731.42273197,0.000109,2]
[340037335,1728358239958,-161.28046835,0.000109,2]
[340037336,1728358239968,-500.0,0.00010973,2]
[340037337,1728358239977,-97.53875571,0.00010995,2]
[340037338,1728358240105,-2654.30371118,0.00010995,2]
[340037353,1728358243800,-6537.74126205,0.00010995,2]
[340037354,1728358243812,-3156.84219908,0.00010995,2]
[340037355,1728358243822,-1621.5,0.00010995,2]
[340037367,1728358245877,-3306.02854614,0.0001099,2]
[340037369,1728358246025,-7125.0,0.0001099,2]
[340037372,1728358462830,597.57,0.00010076,2]
[340037373,1728358499949,150.07,9.56e-05,2]
[340037374,1728358746708,-455.05,0.0001078,2]
[340037375,1728358746729,-544.95,0.00010799,2]
[340037376,1728358748852,-256.6983875,0.00010799,2]
[340037377,1728358748871,-404.0366,0.000108,2]
[340037378,1728358748891,-339.2650125,0.000108,2]
[340037379,1728358750283,-1000.0,0.000108,2]
[340037380,1728358751500,-1000.0,0.000108,2]
[340037381,1728358752686,-1000.0,0.000108,2]
[340037382,1728358753809,-1000.0,0.000108,2]
[340037383,1728358758703,-900.0,0.000108,2]
[340037384,1728359006235,608.36,9.278e-05,2]
[340037394,1728359432091,-412.95315396,0.00010723,2]
[340037395,1728359432103,-280.56667432,0.00010723,2]
[340037396,1728359432114,-396.48017172,0.00010723,2]
[340037404,1728359437978,-1568.901884,0.00010723,2]
[340037405,1728359437988,-126.68023862,0.000108,2]
[340037406,1728359438000,-818.56976462,0.000108,2]
[340037407,1728359438012,-844.46337859,0.000108,2]
[340037411,1728359439923,-3241.38815,0.000108,2]
[340037412,1728359440177,-31.81035567,0.000108,2]
[340037413,1728359440186,-26.84422966,0.00010877,2]
[340037414,1728359440367,-123.15577034,0.00010877,2]
[340037415,1728359440376,-150.0,0.00010899,2]
[340037416,1728359440386,-300.0,0.00010899,2]
[340037417,1728359440395,-137.42822222,0.000109,2]
[340037418,1728359440405,-33.75803064,0.000109,2]
[340037419,1728359440415,-2025.8692,0.000109,2]
[340037420,1728359440424,-395.6864,0.000109,2]
[340037421,1728359440433,-689.53876036,0.000109,2]
[340037422,1728359440444,-1346.60656721,0.000109,2]
[340037423,1728359440455,-2500.0,0.000109,2]
[340037424,1728359440466,-180.84942221,0.000109,2]
[340037425,1728359440475,-7208.63419877,0.000109,2]
[340037426,1728359440484,-507.50311224,0.000109,2]
[340037427,1728359440493,-151.13,0.00010959,2]
[340037428,1728359440502,-163.22,0.00010959,2]
[340037429,1728359440513,-820.529,0.00011,2]
[340037430,1728359440523,-1309.959,0.00011,2]
[340037431,1728359440532,-450.778,0.00011,2]
[340037432,1728359440541,-627.344,0.00011,2]
[340037433,1728359440550,-150.565,0.00011,2]
[340037434,1728359440559,-934.0,0.00011,2]
[340037435,1728359440568,-656.033,0.00011,2]
[340037436,1728359440578,-556.207,0.00011,2]
[340037437,1728359440586,-1645.251,0.00011,2]
[340037438,1728359440595,-1907.0,0.00011,2]
[340037439,1728359440604,-808.0,0.00011,2]
[340037440,1728359440613,-1917.491,0.00011,2]
[340037441,1728359440622,-150.0,0.00011,2]
[340037442,1728359440631,-153.218,0.00011,2]
[340037443,1728359440640,-5902.715,0.00011,2]
[340037444,1728359440649,-3080.972,0.00011,2]
[340037445,1728359440658,-1157.973,0.00011,2]
[340037446,1728359440667,-150.0,0.00011,2]
[340037447,1728359440676,-1083.0,0.00011,2]
[340037448,1728359440685,-10470.60236634,0.00011,2]
[340037458,1728359442989,-164.38861932,0.000109,2]
[340037459,1728359442999,-27343.6953068,0.00011,2]
[340037460,1728359443011,-293.44999981,0.00011,2]
[340037461,1728359443022,-4750.00000002,0.00011,2]
[340037462,1728359443226,-9718.74312821,0.00011,2]
[340037471,1728359445917,-1221.7588,0.00011,2]
[340037472,1728359446024,-1552.725,0.00011,2]
[340037473,1728359446037,-7368.6299918,0.00011,2]
[340037474,1728359446133,-3188.16389739,0.00011,2]
[340037476,1728359507654,617.12,9.581e-05,2]
[340037478,1728359603371,174.14,8.832e-05,2]
[340037480,1728359950652,531.1,0.00010209,2]
[340037481,1728359979826,1206.49292276,0.00010185,2]
[340037482,1728359988248,1988.87994632,0.00010185,2]
[340037485,1728360007496,4380.27,0.00010167,2]
[340037486,1728360019848,625.27,8.268e-05,2]
[340037487,1728360029271,250.0,0.00010123,2]
[340037488,1728360075842,658.5,0.00010168,2]
[340037489,1728360081245,2438.91,0.00010168,2]
[340037490,1728360082721,446.25,0.00010168,2]
[340037491,1728360145763,200.0,0.00010112,2]
[340037492,1728360156242,167.07,0.00010112,2]
[340037493,1728360156644,167.07,0.00010115,2]
[340037494,1728360156918,167.07,0.00010117,2]
[340037495,1728360157144,167.07,0.0001012,2]
[340037496,1728360157361,167.07,0.00010123,2]
[340037497,1728360157594,167.07,0.00010125,2]
[340037498,1728360157813,167.07,0.00010128,2]
[340037499,1728360158055,167.07,0.00010131,2]
[340037500,1728360158268,167.07,0.00010133,2]
[340037501,1728360158768,167.07,0.00010136,2]
[340037502,1728360158905,167.07,0.00010139,2]
[340037503,1728360159167,167.07,0.00010141,2]
[340037504,1728360159557,167.07,0.00010144,2]
[340037505,1728360159760,167.07,0.00010147,2]
[340037506,1728360160031,167.07,0.00010149,2]
[340037507,1728360160469,167.07,0.00010152,2]
[340037508,1728360160704,167.07,0.00010155,2]
[340037509,1728360161051,167.07,0.00010157,2]
[340037510,1728360161146,167.07,0.0001016,2]
[340037511,1728360161385,167.07,0.00010163,2]
[340037512,1728360161532,250.0,0.00010112,2]
[340037513,1728360204653,518.4,0.00023,60]
[340037514,1728360230130,215.9,0.000101,2]
[340037515,1728360265313,1000.0,0.00010057,2]
[340037516,1728360308036,156.73,0.00010058,2]
[340037517,1728360311516,1198.8,0.00010058,2]
[340037518,1728360317119,5554.05,0.00010093,2]
[340037519,1728360346174,500.0,0.00010119,2]
[340037520,1728360349379,1852.42,0.00010119,2]
[340037521,1728360451073,-944.48,0.00010234,2]
[340037522,1728360451099,-55.52,0.00010242,2]
[340037523,1728360452589,-604.01,0.00010242,2]
[340037524,1728360452610,-395.99,0.00010271,2]
[340037525,1728360453757,-1000.0,0.00010271,2]
[340037526,1728360454880,-1000.0,0.00010271,2]
[340037527,1728360456019,-210.21,0.00010271,2]
[340037528,1728360456057,-789.79,0.00010285,2]
[340037529,1728360458246,-1000.0,0.00010285,2]
[340037530,1728360462801,-900.0,0.00010285,2]
[340037531,1728360558302,250.0,0.00010207,2]
[340037532,1728360584803,668.52,8.436e-05,2]
[340037533,1728360607633,156.4074717,0.00010192,2]
[340037551,1728360632104,-170.92,0.00010292,2]
[340037552,1728360632114,-300.0,0.00010304,2]
[340037553,1728360632123,-111.01630547,0.00010304,2]
[340037554,1728360632135,-1481.83369453,0.00010304,2]
[340037555,1728360632144,-7609.17630547,0.00010305,2]
[340037556,1728360632162,-5393.80788246,0.00010305,2]
[340037557,1728360632255,-10897.01581207,0.00010305,2]
[340037558,1728360632265,-180.2,0.00010605,2]
[340037559,1728360632274,-159.49,0.00010651,2]
[340037560,1728360632283,-668.52,0.000107,2]
[340037561,1728360632292,-150.58,0.00010727,2]
[340037562,1728360632300,-150.99,0.00010727,2]
[340037563,1728360632405,-4701.27688856,0.00010727,2]
[340037569,1728360638108,-526.77311144,0.00010727,2]
[340037570,1728360638117,-150.0,0.00010753,2]
[340037571,1728360638126,-408.70043476,0.00010754,2]
[340037572,1728360638265,-8783.99956524,0.00010754,2]
[340037573,1728360638274,-171.18625286,0.000109,2]
[340037574,1728360638283,-1261.88552863,0.000109,2]
[340037575,1728360638292,-1261.88552862,0.000109,2]
[340037576,1728360638301,-3373.064,0.000109,2]
[340037577,1728360638311,-4311.7504,0.000109,2]